fUST/lending_fUST_20251028
["ID","MTS","AMOUNT","RATE_DAILY","PERIOD"]
[392540881,1761635463904,-959.62,0.00023013,2]
[392540882,1761635463914,-500.0,0.00023013,2]
[392540883,1761635463924,-500.0,0.00023013,2]
[392540884,1761635463934,-500.0,0.00023013,2]
[392540885,1761635463943,-225.48791036,0.00023013,2]
[392540886,1761635463953,-632.37115525,0.00023013,2]
[392540887,1761635463963,-500.0,0.00023013,2]
[392540888,1761635463972,-632.32409036,0.00023013,2]
[392540889,1761635463982,-1690.05,0.00023013,2]
[392540890,1761635463991,-490.04275426,0.00023013,2]
[392540891,1761635464001,-500.0,0.00023013,2]
[392540892,1761635464011,-500.0,0.00023013,2]
[392540893,1761635464022,-362.78320675,0.00023013,2]
[392540894,1761635464032,-500.0,0.00023013,2]
[392540895,1761635464043,-715.75,0.00023013,2]
[392540896,1761635464053,-500.0,0.00023013,2]
[392540897,1761635464063,-500.0,0.00023013,2]
[392540898,1761635464076,-535.62091436,0.00023013,2]
[392540899,1761635464085,-500.0,0.00023013,2]
[392540900,1761635464094,-603.19,0.00023013,2]
[392540901,1761635464104,-398.60779424,0.00023013,2]
[392540902,1761635464113,-500.0,0.00023013,2]
[392540903,1761635464123,-1127.61,0.00023013,2]
[392540904,1761635464132,-530.38,0.00023013,2]
[392540905,1761635464143,-500.0,0.00023013,2]
[392540906,1761635464154,-634.37,0.00023013,2]
[392540907,1761635464164,-500.0,0.00023013,2]
[392540908,1761635464174,-500.0,0.00023013,2]
[392540909,1761635464184,-500.0,0.00023013,2]
[392540910,1761635464194,-1000.0,0.00023013,2]
[392540911,1761635464204,-500.0,0.00023013,2]
[392540912,1761635464214,-500.0,0.00023013,2]
[392540913,1761635464226,-638.18,0.00023013,2]
[392540914,1761635464236,-500.0,0.00023013,2]
[392540915,1761635464248,-1152.11,0.00023013,2]
[392540916,1761635464257,-500.0,0.00023013,2]
[392540917,1761635464267,-708.47,0.00023013,2]
[392540918,1761635464279,-1290.55,0.00023013,2]
[392540919,1761635464292,-537.33,0.00023013,2]
[392540920,1761635464302,-556.59,0.00023013,2]
[392540921,1761635464312,-584.67,0.00023013,2]
[392540922,1761635464321,-500.0,0.00023013,2]
[392540923,1761635464331,-500.0,0.00023013,2]
[392540924,1761635464340,-500.0,0.00023013,2]
[392540925,1761635464350,-500.0,0.00023013,2]
[392540926,1761635464361,-741.13,0.00023013,2]
[392540927,1761635464371,-500.0,0.00023013,2]
[392540928,1761635464382,-500.0,0.00023013,2]
[392540929,1761635464392,-500.0,0.00023013,2]
[392540930,1761635464402,-1281.8,0.00023013,2]
[392540931,1761635464414,-500.0,0.00023013,2]
[392540932,1761635464424,-500.0,0.00023013,2]
[392540933,1761635464434,-500.0,0.00023013,2]
[392540934,1761635464443,-493.63317648,0.00023013,2]
[392540935,1761635464454,-500.0,0.00023013,2]
[392540936,1761635464464,-500.0,0.00023013,2]
[392540937,1761635464474,-500.0,0.00023013,2]
[392540938,1761635464485,-500.0,0.00023013,2]
[392540939,1761635464495,-500.0,0.00023013,2]
[392540940,1761635464504,-500.0,0.00023013,2]
[392540941,1761635464514,-500.0,0.00023013,2]
[392540942,1761635464523,-991.69,0.00023013,2]
[392540943,1761635464534,-500.0,0.00023013,2]
[392540944,1761635464547,-1202.42,0.00023013,2]
[392540945,1761635464557,-500.0,0.00023013,2]
[392540946,1761635464566,-500.0,0.00023013,2]
[392540947,1761635464576,-500.0,0.00023013,2]
[392540948,1761635464586,-500.0,0.00023013,2]
[392540949,1761635464595,-569.6,0.00023013,2]
[392540950,1761635464605,-560.72,0.00023013,2]
[392540951,1761635464615,-500.0,0.00023013,2]
[392540952,1761635464624,-500.0,0.00023013,2]
[392540953,1761635464634,-500.0,0.00023013,2]
[392540954,1761635464644,-596.63,0.00023013,2]
[392540955,1761635464655,-500.0,0.00023013,2]
[392540956,1761635464665,-500.0,0.00023013,2]
[392540957,1761635464675,-500.0,0.00023013,2]
[392540958,1761635464686,-1041.06,0.00023013,2]
[392540959,1761635464695,-500.0,0.00023013,2]
[392540960,1761635464705,-707.6,0.00023013,2]
[392540961,1761635464714,-500.0,0.00023013,2]
[392540962,1761635464725,-500.0,0.00023013,2]
[392540963,1761635464734,-500.0,0.00023013,2]
[392540964,1761635464744,-500.0,0.00023013,2]
[392540965,1761635464754,-500.0,0.00023013,2]
[392540966,1761635464764,-740.89,0.00023013,2]
[392540967,1761635464774,-500.0,0.00023013,2]
[392540968,1761635464784,-729.78,0.00023013,2]
[392540969,1761635464795,-554.86,0.00023013,2]
[392540970,1761635464805,-1476.19,0.00023013,2]
[392540971,1761635464814,-500.0,0.00023013,2]
[392540972,1761635464824,-955.14,0.00023013,2]
[392540973,1761635464834,-663.08,0.00023013,2]
[392540974,1761635464844,-500.0,0.00023013,2]
[392540975,1761635464853,-1193.15,0.00023013,2]
[392540976,1761635464864,-828.34,0.00023013,2]
[392540977,1761635464874,-500.0,0.00023013,2]
[392540978,1761635464883,-500.0,0.00023013,2]
[392540979,1761635464893,-1527.13,0.00023013,2]
[392540980,1761635464903,-546.45597398,0.00023013,2]
[392540981,1761635464914,-500.0,0.00023013,2]
[392540982,1761635464924,-500.0,0.00023013,2]
[392540983,1761635464934,-1186.35,0.00023013,2]
[392540984,1761635464944,-500.0,0.00023013,2]
[392540985,1761635464954,-846.87,0.00023013,2]
[392540986,1761635464963,-500.0,0.00023013,2]
[392540987,1761635464973,-500.0,0.00023013,2]
[392540988,1761635464983,-500.0,0.00023013,2]
[392540989,1761635464994,-2295.33,0.00023013,2]
[392540990,1761635465003,-610.55992295,0.00023013,2]
[392540991,1761635465013,-500.0,0.00023013,2]
[392540992,1761635465023,-598.96,0.00023013,2]
[392540993,1761635465033,-500.0,0.00023013,2]
[392540994,1761635465044,-826.63,0.00023013,2]
[392540995,1761635465054,-908.14,0.00023013,2]
[392540996,1761635465065,-500.0,0.00023013,2]
[392540997,1761635465077,-500.0,0.00023013,2]
[392540998,1761635465087,-500.0,0.00023013,2]
[392540999,1761635465097,-500.0,0.00023013,2]
[392541000,1761635465107,-500.0,0.00023013,2]
[392541001,1761635465116,-500.0,0.00023013,2]
[392541002,1761635465127,-826.15,0.00023013,2]
[392541003,1761635465137,-1024.07,0.00023013,2]
[392541004,1761635465147,-500.0,0.00023013,2]
[392541005,1761635465157,-500.0,0.00023013,2]
[392541006,1761635465167,-500.0,0.00023013,2]
[392541007,1761635465177,-651.86,0.00023013,2]
[392541008,1761635465187,-786.57,0.00023013,2]
[392541009,1761635465197,-1120.22,0.00023013,2]
[392541010,1761635465207,-500.0,0.00023013,2]
[392541011,1761635465217,-500.0,0.00023013,2]
[392541012,1761635465226,-518.62117915,0.00023013,2]
[392541013,1761635465235,-495.16366121,0.00023013,2]
[392541014,1761635465245,-500.0,0.00023013,2]
[392541015,1761635465255,-708.44,0.00023013,2]
[392541016,1761635465264,-500.0,0.00023013,2]
[392541017,1761635465274,-592.66,0.00023013,2]
[392541018,1761635465285,-584.83,0.00023013,2]
[392541019,1761635465295,-500.0,0.00023013,2]
[392541020,1761635465305,-500.0,0.00023013,2]
[392541021,1761635465314,-500.0,0.00023013,2]
[392541022,1761635465323,-667.11,0.00023013,2]
[392541023,1761635465333,-1435.66,0.00023013,2]
[392541024,1761635465342,-2653.88,0.00023013,2]
[392541025,1761635465352,-500.0,0.00023013,2]
[392541026,1761635465362,-704.69,0.00023013,2]
[392541027,1761635465372,-500.0,0.00023013,2]
[392541028,1761635465381,-794.41,0.00023013,2]
[392541029,1761635465391,-1040.78,0.00023013,2]
[392541030,1761635465400,-500.0,0.00023013,2]
[392541031,1761635465409,-1280.75,0.00023013,2]
[392541032,1761635465419,-915.53,0.00023013,2]
[392541033,1761635465429,-2189.92,0.00023013,2]
[392541034,1761635465438,-500.0,0.00023013,2]
[392541035,1761635465448,-500.0,0.00023013,2]
[392541036,1761635465458,-574.84,0.00023013,2]
[392541037,1761635465468,-500.0,0.00023013,2]
[392541038,1761635465477,-1776.07,0.00023013,2]
[392541039,1761635465487,-500.0,0.00023013,2]
[392541040,1761635465496,-885.22,0.00023013,2]
[392541041,1761635465506,-1000.0,0.00023013,2]
[392541042,1761635465515,-648.19,0.00023013,2]
[392541043,1761635465525,-1413.33,0.00023013,2]
[392541044,1761635465535,-500.0,0.00023013,2]
[392541045,1761635465545,-500.0,0.00023013,2]
[392541046,1761635465555,-1472.19,0.00023013,2]
[392541047,1761635465565,-500.0,0.00023013,2]
[392541048,1761635465577,-500.0,0.00023013,2]
[392541049,1761635465587,-178.46597866,0.00023013,2]
[392541050,1761635465599,-894.76,0.00023013,2]
[392541051,1761635465610,-3175.04,0.00023013,2]
[392541052,1761635465619,-500.0,0.00023013,2]
[392541053,1761635465630,-500.0,0.00023013,2]
[392541054,1761635465640,-500.0,0.00023013,2]
[392541055,1761635465650,-500.0,0.00023013,2]
[392541056,1761635465661,-670.41,0.00023013,2]
[392541057,1761635465672,-558.04,0.00023013,2]
[392541058,1761635465681,-500.0,0.00023013,2]
[392541059,1761635465691,-500.0,0.00023013,2]
[392541060,1761635465700,-414.9,0.00023013,2]
[392541061,1761635465710,-1443.63,0.00023013,2]
[392541062,1761635465720,-500.0,0.00023013,2]
[392541063,1761635465730,-500.0,0.00023013,2]
[392541064,1761635465740,-500.0,0.00023013,2]
[392541065,1761635465750,-506.64145494,0.00023013,2]
[392541066,1761635465760,-532.74,0.00023013,2]
[392541067,1761635465769,-500.0,0.00023013,2]
[392541068,1761635465779,-500.0,0.00023013,2]
[392541069,1761635465789,-500.0,0.00023013,2]
[392541070,1761635465798,-500.0,0.00023013,2]
[392541071,1761635465807,-500.0,0.00023013,2]
[392541072,1761635465817,-799.0,0.00023013,2]
[392541073,1761635465826,-500.0,0.00023013,2]
[392541074,1761635465836,-901.78,0.00023013,2]
[392541075,1761635465846,-626.97512621,0.00023013,2]
[392541076,1761635465855,-548.77345549,0.00023013,2]
[392541077,1761635465864,-500.0,0.00023013,2]
[392541078,1761635465874,-500.0,0.00023013,2]
[392541079,1761635465883,-714.71,0.00023013,2]
[392541080,1761635465893,-500.0,0.00023013,2]
[392541081,1761635465904,-1226.97,0.00023013,2]
[392541082,1761635465914,-995.93,0.00023013,2]
[392541083,1761635465923,-500.0,0.00023013,2]
[392541084,1761635465933,-933.25,0.00023013,2]
[392541085,1761635465943,-842.36,0.00023013,2]
[392541086,1761635465952,-590.93,0.00023013,2]
[392541087,1761635465962,-682.73,0.00023013,2]
[392541088,1761635465971,-500.0,0.00023013,2]
[392541089,1761635465981,-1269.67,0.00023013,2]
[392541090,1761635465991,-500.0,0.00023013,2]
[392541091,1761635466001,-500.0,0.00023013,2]
[392541092,1761635466011,-500.0,0.00023013,2]
[392541093,1761635466023,-500.0,0.00023013,2]
[392541094,1761635466033,-500.0,0.00023013,2]
[392541095,1761635466210,-500.0,0.00023013,2]
[392541096,1761635466221,-500.0,0.00023013,2]
[392541097,1761635466230,-500.0,0.00023013,2]
[392541098,1761635466240,-500.0,0.00023013,2]
[392541099,1761635466249,-500.0,0.00023013,2]
[392541100,1761635466258,-1548.62,0.00023013,2]
[392541101,1761635466268,-648.16,0.00023013,2]
[392541102,1761635466278,-1713.43,0.00023013,2]
[392541103,1761635466290,-570.4,0.00023013,2]
[392541104,1761635466299,-500.0,0.00023013,2]
[392541105,1761635466308,-500.0,0.00023013,2]
[392541106,1761635466318,-807.86,0.00023013,2]
[392541107,1761635466327,-962.45,0.00023013,2]
[392541108,1761635466336,-607.99,0.00023013,2]
[392541109,1761635466345,-1597.02,0.00023013,2]
[392541110,1761635466354,-621.4,0.00023013,2]
[392541111,1761635466363,-500.0,0.00023013,2]
[392541112,1761635466372,-1840.85,0.00023013,2]
[392541113,1761635466381,-500.0,0.00023013,2]
[392541114,1761635466390,-500.0,0.00023013,2]
[392541115,1761635466400,-1281.11,0.00023013,2]
[392541116,1761635466409,-1245.66,0.00023013,2]
[392541117,1761635466418,-500.0,0.00023013,2]
[392541118,1761635466428,-500.0,0.00023013,2]
[392541119,1761635466438,-500.0,0.00023013,2]
[392541120,1761635466447,-1763.97,0.00023013,2]
[392541121,1761635466456,-540.2,0.00023013,2]
[392541122,1761635466466,-2436.61,0.00023013,2]
[392541123,1761635466477,-495.93217495,0.00023013,2]
[392541124,1761635466487,-1315.04,0.00023013,2]
[392541125,1761635466498,-3051.8,0.00023013,2]
[392541126,1761635466507,-500.0,0.00023013,2]
[392541127,1761635466517,-500.0,0.00023013,2]
[392541128,1761635466527,-854.16,0.00023013,2]
[392541129,1761635466536,-500.0,0.00023013,2]
[392541130,1761635466546,-500.0,0.00023013,2]
[392541131,1761635466556,-1296.21,0.00023013,2]
[392541132,1761635466565,-558.93,0.00023013,2]
[392541133,1761635466575,-500.0,0.00023013,2]
[392541134,1761635466586,-567.19,0.00023013,2]
[392541135,1761635466596,-500.0,0.00023013,2]
[392541136,1761635466605,-538.03,0.00023013,2]
[392541137,1761635466615,-693.14,0.00023013,2]
[392541138,1761635466625,-500.0,0.00023013,2]
[392541139,1761635466634,-729.65,0.00023013,2]
[392541140,1761635466645,-500.0,0.00023013,2]
[392541141,1761635466654,-500.0,0.00023013,2]
[392541142,1761635466663,-811.98,0.00023013,2]
[392541143,1761635466672,-1562.88,0.00023013,2]
[392541144,1761635466681,-610.16,0.00023013,2]
[392541145,1761635466691,-500.0,0.00023013,2]
[392541146,1761635466700,-1066.35,0.00023013,2]
[392541147,1761635466711,-608.81,0.00023013,2]
[392541148,1761635466720,-500.0,0.00023013,2]
[392541149,1761635466731,-600.01,0.00023013,2]
[392541150,1761635466740,-500.0,0.00023013,2]
[392541151,1761635466749,-500.0,0.00023013,2]
[392541152,1761635466758,-1001.11,0.00023013,2]
[392541153,1761635466767,-632.42,0.00023013,2]
[392541154,1761635466776,-961.06,0.00023013,2]
[392541155,1761635466785,-1172.41,0.00023013,2]
[392541156,1761635466796,-500.0,0.00023013,2]
[392541157,1761635466806,-675.95,0.00023013,2]
[392541158,1761635466815,-500.0,0.00023013,2]
[392541159,1761635466824,-537.35,0.00023013,2]
[392541160,1761635466833,-622.73,0.00023013,2]
[392541161,1761635466843,-500.0,0.00023013,2]
[392541162,1761635466852,-1475.32,0.00023013,2]
[392541163,1761635466861,-943.69,0.00023013,2]
[392541164,1761635466870,-527.73,0.00023013,2]
[392541165,1761635466880,-500.0,0.00023013,2]
[392541166,1761635466890,-500.0,0.00023013,2]
[392541167,1761635466899,-546.22,0.00023013,2]
[392541168,1761635466908,-802.51,0.00023013,2]
[392541169,1761635466919,-1323.07,0.00023013,2]
[392541170,1761635466928,-500.0,0.00023013,2]
[392541171,1761635466939,-500.0,0.00023013,2]
[392541172,1761635466948,-1081.49,0.00023013,2]
[392541173,1761635466960,-808.32,0.00023013,2]
[392541174,1761635466971,-500.0,0.00023013,2]
[392541175,1761635466983,-500.0,0.00023013,2]
[392541176,1761635466994,-2191.24,0.00023013,2]
[392541177,1761635467004,-500.0,0.00023013,2]
[392541178,1761635467015,-500.0,0.00023013,2]
[392541179,1761635467027,-918.7,0.00023013,2]
[392541180,1761635467038,-649.38,0.00023013,2]
[392541181,1761635467048,-500.0,0.00023013,2]
[392541182,1761635467058,-870.92,0.00023013,2]
[392541183,1761635467069,-500.0,0.00023013,2]
[392541184,1761635467079,-730.78,0.00023013,2]
[392541185,1761635467088,-2634.03,0.00023013,2]
[392541186,1761635467098,-500.0,0.00023013,2]
[392541187,1761635467107,-1269.87,0.00023013,2]
[392541188,1761635467117,-500.0,0.00023013,2]
[392541189,1761635467127,-1967.43,0.00023013,2]
[392541190,1761635467136,-500.0,0.00023013,2]
[392541191,1761635467145,-650.12,0.00023013,2]
[392541192,1761635467155,-500.0,0.00023013,2]
[392541193,1761635467165,-512.74,0.00023013,2]
[392541194,1761635467174,-965.61,0.00023013,2]
[392541195,1761635467184,-500.0,0.00023013,2]
[392541196,1761635467195,-594.65,0.00023013,2]
[392541197,1761635467205,-744.7,0.00023013,2]
[392541198,1761635467215,-461.67202141,0.00023013,2]
[392541199,1761635467225,-662.78,0.00023013,2]
[392541200,1761635467235,-1987.69,0.00023013,2]
[392541201,1761635467245,-1564.86,0.00023013,2]
[392541202,1761635467254,-500.0,0.00023013,2]
[392541203,1761635467265,-1117.6,0.00023013,2]
[392541204,1761635467277,-500.0,0.00023013,2]
[392541205,1761635467287,-500.0,0.00023013,2]
[392541206,1761635467296,-500.0,0.00023013,2]
[392541207,1761635467306,-500.0,0.00023013,2]
[392541208,1761635467315,-903.04,0.00023013,2]
[392541209,1761635467324,-2111.37,0.00023013,2]
[392541210,1761635467334,-500.0,0.00023013,2]
[392541211,1761635467343,-543.29,0.00023013,2]
[392541212,1761635467352,-626.07,0.00023013,2]
[392541213,1761635467361,-359.41830718,0.00023013,2]
[392541214,1761635467371,-2223.28,0.00023013,2]
[392541215,1761635467380,-500.0,0.00023013,2]
[392541216,1761635467390,-500.0,0.00023013,2]
[392541217,1761635467399,-2843.76,0.00023013,2]
[392541218,1761635467408,-1289.34,0.00023013,2]
[392541219,1761635467417,-500.0,0.00023013,2]
[392541220,1761635467426,-500.0,0.00023013,2]
[392541221,1761635467435,-630.14,0.00023013,2]
[392541222,1761635467450,-500.0,0.00023013,2]
[392541223,1761635467460,-500.0,0.00023013,2]
[392541224,1761635467470,-500.0,0.00023013,2]
[392541225,1761635467479,-4652.07,0.00023013,2]
[392541226,1761635467488,-500.0,0.00023013,2]
[392541227,1761635467497,-500.0,0.00023013,2]
[392541228,1761635467506,-715.08,0.00023013,2]
[392541229,1761635467515,-769.7,0.00023013,2]
[392541230,1761635467524,-500.0,0.00023013,2]
[392541231,1761635467533,-505.99,0.00023013,2]
[392541232,1761635467542,-500.0,0.00023013,2]
[392541233,1761635467552,-3216.82,0.00023013,2]
[392541234,1761635467561,-500.0,0.00023013,2]
[392541235,1761635467570,-853.88,0.00023013,2]
[392541236,1761635467581,-500.0,0.00023013,2]
[392541237,1761635467591,-886.63,0.00023013,2]
[392541238,1761635467602,-500.0,0.00023013,2]
[392541239,1761635467613,-500.0,0.00023013,2]
[392541240,1761635467625,-29228.49,0.00023013,2]
[392541241,1761635467635,-2085.69,0.00023013,2]
[392541242,1761635467645,-500.0,0.00023013,2]
[392541243,1761635467655,-551.06,0.00023013,2]
[392541244,1761635467665,-500.0,0.00023013,2]
[392541245,1761635467674,-500.0,0.00023013,2]
[392541246,1761635467685,-500.0,0.00023013,2]
[392541247,1761635467694,-526.95,0.00023013,2]
[392541248,1761635467703,-500.0,0.00023013,2]
[392541249,1761635467713,-565.2,0.00023013,2]
[392541250,1761635467723,-500.0,0.00023013,2]
[392541251,1761635467732,-1012.52,0.00023013,2]
[392541252,1761635467743,-500.0,0.00023013,2]
[392541253,1761635467752,-614.58,0.00023013,2]
[392541254,1761635467761,-500.0,0.00023013,2]
[392541255,1761635467771,-684.26,0.00023013,2]
[392541256,1761635467780,-500.0,0.00023013,2]
[392541257,1761635467791,-500.0,0.00023013,2]
[392541258,1761635467800,-500.0,0.00023013,2]
[392541259,1761635467810,-500.0,0.00023013,2]
[392541260,1761635467819,-525.94149003,0.00023013,2]
[392541261,1761635467828,-500.0,0.00023013,2]
[392541262,1761635467837,-500.0,0.00023013,2]
[392541263,1761635467847,-1758.47,0.00023013,2]
[392541264,1761635467856,-735.45,0.00023013,2]
[392541265,1761635467865,-500.0,0.00023013,2]
[392541266,1761635467874,-500.0,0.00023013,2]
[392541267,1761635467883,-3138.8,0.00023013,2]
[392541268,1761635467893,-769.55,0.00023013,2]
[392541269,1761635467902,-500.0,0.00023013,2]
[392541270,1761635467911,-563.84,0.00023013,2]
[392541271,1761635467920,-500.0,0.00023013,2]
[392541272,1761635467929,-500.0,0.00023013,2]
[392541273,1761635467938,-500.0,0.00023013,2]
[392541274,1761635467947,-909.78,0.00023013,2]
[392541275,1761635467957,-500.0,0.00023013,2]
[392541276,1761635467966,-1183.88,0.00023013,2]
[392541277,1761635467975,-1758.37,0.00023013,2]
[392541278,1761635467984,-2123.15,0.00023013,2]
[392541279,1761635467994,-500.0,0.00023013,2]
[392541280,1761635468003,-500.0,0.00023013,2]
[392541281,1761635468012,-936.49,0.00023013,2]
[392541282,1761635468021,-1564.89,0.00023013,2]
[392541283,1761635468031,-500.0,0.00023013,2]
[392541284,1761635468040,-500.0,0.00023013,2]
[392541285,1761635468049,-500.0,0.00023013,2]
[392541286,1761635468059,-2326.74,0.00023013,2]
[392541287,1761635468072,-751.97,0.00023013,2]
[392541288,1761635468081,-862.57,0.00023013,2]
[392541289,1761635468091,-500.0,0.00023013,2]
[392541290,1761635468103,-500.0,0.00023013,2]
[392541291,1761635468112,-500.0,0.00023013,2]
[392541292,1761635468121,-500.0,0.00023013,2]
[392541293,1761635468130,-500.0,0.00023013,2]
[392541294,1761635468140,-2586.64,0.00023013,2]
[392541295,1761635468150,-437.18166051,0.00023013,2]
[392541296,1761635468160,-1388.81,0.00023013,2]
[392541297,1761635468169,-1962.72,0.00023013,2]
[392541298,1761635468179,-1111.55,0.00023013,2]
[392541299,1761635468189,-500.0,0.00023013,2]
[392541300,1761635468199,-846.75,0.00023013,2]
[392541301,1761635468208,-863.32,0.00023013,2]
[392541302,1761635468218,-540.08,0.00023013,2]
[392541303,1761635468227,-4371.88,0.00023013,2]
[392541304,1761635468237,-500.0,0.00023013,2]
[392541305,1761635468247,-2240.96,0.00023013,2]
[392541306,1761635468256,-500.0,0.00023013,2]
[392541307,1761635468266,-1160.89,0.00023013,2]
[392541308,1761635468275,-5928.57,0.00023013,2]
[392541309,1761635468284,-2323.44,0.00023013,2]
[392541310,1761635468294,-1791.62,0.00023013,2]
[392541311,1761635468303,-2621.46,0.00023013,2]
[392541312,1761635468312,-500.0,0.00023013,2]
[392541313,1761635468321,-500.0,0.00023013,2]
[392541314,1761635468331,-631.85,0.00023013,2]
[392541315,1761635468340,-500.0,0.00023013,2]
[392541316,1761635468351,-975.55,0.00023013,2]
[392541317,1761635468360,-500.0,0.00023013,2]
[392541318,1761635468370,-500.0,0.00023013,2]
[392541319,1761635468379,-1186.44,0.00023013,2]
[392541320,1761635468389,-2321.63,0.00023013,2]
[392541321,1761635468398,-500.0,0.00023013,2]
[392541322,1761635468407,-936.95,0.00023013,2]
[392541323,1761635468416,-500.0,0.00023013,2]
[392541324,1761635468425,-2951.94,0.00023013,2]
[392541325,1761635468434,-1024.53,0.00023013,2]
[392541326,1761635468443,-500.0,0.00023013,2]
[392541327,1761635468453,-568.99970088,0.00023013,2]
[392541328,1761635468462,-500.0,0.00023013,2]
[392541329,1761635468471,-1393.7,0.00023013,2]
[392541330,1761635468480,-500.0,0.00023013,2]
[392541331,1761635468490,-1915.93,0.00023013,2]
[392541332,1761635468499,-569.62,0.00023013,2]
[392541333,1761635468508,-500.0,0.00023013,2]
[392541334,1761635468517,-500.0,0.00023013,2]
[392541335,1761635468527,-715.89,0.00023013,2]
[392541336,1761635468537,-2003.25,0.00023013,2]
[392541337,1761635468547,-500.0,0.00023013,2]
[392541338,1761635468556,-614.29,0.00023013,2]
[392541339,1761635468566,-500.0,0.00023013,2]
[392541340,1761635468575,-500.0,0.00023013,2]
[392541341,1761635468585,-1493.81,0.00023013,2]
[392541342,1761635468595,-1016.96,0.00023013,2]
[392541343,1761635468604,-637.23,0.00023013,2]
[392541344,1761635468616,-1173.47,0.00023013,2]
[392541345,1761635468625,-500.0,0.00023013,2]
[392541346,1761635468635,-500.0,0.00023013,2]
[392541347,1761635468645,-500.0,0.00023013,2]
[392541348,1761635468655,-1075.02,0.00023013,2]
[392541349,1761635468664,-994.98,0.00023013,2]
[392541350,1761635468674,-391.24663453,0.00023013,2]
[392541351,1761635468683,-675.64,0.00023013,2]
[392541352,1761635468693,-1399.5,0.00023013,2]
[392541353,1761635468702,-3537.59,0.00023013,2]
[392541354,1761635468712,-722.95,0.00023013,2]
[392541355,1761635468722,-500.0,0.00023013,2]
[392541356,1761635468731,-500.0,0.00023013,2]
[392541357,1761635468742,-2387.11,0.00023013,2]
[392541358,1761635468751,-500.0,0.00023013,2]
[392541359,1761635468761,-2131.55,0.00023013,2]
[392541360,1761635468771,-500.0,0.00023013,2]
[392541361,1761635468781,-12061.61,0.00023013,2]
[392541362,1761635468791,-781.37,0.00023013,2]
[392541363,1761635468800,-1649.47,0.00023013,2]
[392541364,1761635468810,-1002.41,0.00023013,2]
[392541365,1761635468820,-500.0,0.00023013,2]
[392541366,1761635468829,-500.0,0.00023013,2]
[392541367,1761635468839,-500.0,0.00023013,2]
[392541368,1761635468849,-500.0,0.00023013,2]
[392541369,1761635468858,-500.0,0.00023013,2]
[392541370,1761635468869,-1726.31,0.00023013,2]
[392541371,1761635468879,-686.19,0.00023013,2]
[392541372,1761635468888,-2475.29,0.00023013,2]
[392541373,1761635468898,-1842.19,0.00023013,2]
[392541374,1761635468907,-500.0,0.00023013,2]
[392541375,1761635468917,-500.0,0.00023013,2]
[392541376,1761635468927,-699.27,0.00023013,2]
[392541377,1761635468936,-500.0,0.00023013,2]
[392541378,1761635468946,-1551.56,0.00023013,2]
[392541379,1761635468956,-500.0,0.00023013,2]
[392541380,1761635468966,-529.25,0.00023013,2]